fUST/lending_fUST_20240119
["ID","MTS","AMOUNT","RATE_DAILY","PERIOD"]
[312110627,1705635042179,-200.94809308,0.00034246,3]
[312110628,1705635042188,-500.0,0.00034246,3]
[312110629,1705635042198,-1806.32,0.00034246,3]
[312110630,1705635042208,-500.0,0.00034246,3]
[312110631,1705635042221,-500.0,0.00034246,3]
[312110632,1705635042234,-1117.13,0.00034246,3]
[312110633,1705635042247,-5588.27,0.00034246,3]
[312110634,1705635042256,-763.74,0.00034246,3]
[312110635,1705635042267,-1483.93,0.00034246,3]
[312110636,1705635042277,-500.0,0.00034246,3]
[312110637,1705635042286,-2752.47,0.00034246,3]
[312110638,1705635042295,-500.0,0.00034246,3]
[312110639,1705635042416,-500.0,0.00034246,3]
[312110640,1705635042425,-500.0,0.00034246,3]
[312110641,1705635042435,-314.91666345,0.00034246,3]
[312110642,1705635042444,-500.0,0.00034246,3]
[312110643,1705635042454,-528.99,0.00034246,3]
[312110644,1705635042463,-500.0,0.00034246,3]
[312110645,1705635042472,-2320.6,0.00034246,3]
[312110646,1705635042481,-608.15,0.00034246,3]
[312110648,1705635042491,-237.03094601,0.00034519,2]
[312110649,1705635042500,-4214.56369568,0.00034519,7]
[312110651,1705635042509,-500.0,0.00034519,2]
[312110653,1705635042519,-500.0,0.00034519,2]
[312110654,1705635042528,-500.0,0.00034519,2]
[312110655,1705635042537,-500.0,0.00034519,2]
[312110656,1705635042546,-500.0,0.00034519,2]
[312110657,1705635042555,-500.0,0.00034519,2]
[312110659,1705635042565,-500.0,0.00034519,2]
[312110661,1705635042574,-500.0,0.00034519,2]
[312110663,1705635042583,-500.0,0.00034519,2]
[312110664,1705635042593,-165.10890484,0.00034519,2]
[312110665,1705635042602,-280.13339056,0.00034519,2]
[312110666,1705635042612,-500.0,0.00034519,2]
[312110668,1705635042622,-500.0,0.00034519,2]
[312110670,1705635042632,-500.0,0.00034519,2]
[312110671,1705635042641,-500.0,0.00034519,2]
[312110673,1705635042650,-500.0,0.00034519,2]
[312110675,1705635042659,-293.52592734,0.00034519,2]
[312110676,1705635042668,-500.0,0.00034519,2]
[312110677,1705635042677,-500.0,0.00034519,2]
[312110678,1705635042686,-500.0,0.00034519,2]
[312110679,1705635042696,-164.20816128,0.00034519,2]
[312110681,1705635042706,-500.0,0.00034519,2]
[312110682,1705635042716,-604.41589688,0.00034519,2]
[312110684,1705635042725,-500.0,0.00034519,2]
[312110687,1705635042734,-500.0,0.00034519,2]
[312110690,1705635042745,-500.0,0.00034519,2]
[312110693,1705635042754,-500.0,0.00034519,2]
[312110694,1705635042763,-500.0,0.00034519,2]
[312110696,1705635042772,-500.0,0.00034519,2]
[312110697,1705635042781,-500.0,0.00034519,2]
[312110698,1705635042790,-500.0,0.00034519,2]
[312110699,1705635042800,-500.0,0.00034519,2]
[312110700,1705635042810,-593.18249961,0.00034519,2]
[312110701,1705635042819,-484.22677128,0.00034519,2]
[312110702,1705635042829,-500.0,0.00034519,2]
[312110703,1705635042839,-500.0,0.00034519,2]
[312110704,1705635042848,-500.0,0.00034519,2]
[312110705,1705635042857,-500.0,0.00034519,2]
[312110706,1705635042867,-500.0,0.00034519,2]
[312110707,1705635042876,-500.0,0.00034519,2]
[312110708,1705635042886,-500.0,0.00034519,2]
[312110709,1705635042895,-500.0,0.00034519,2]
[312110710,1705635042904,-500.0,0.0003452,3]
[312110711,1705635042913,-500.0,0.0003452,3]
[312110712,1705635042923,-1762.75,0.0003452,3]
[312110713,1705635042932,-607.89,0.0003452,3]
[312110714,1705635042942,-500.0,0.0003452,3]
[312110715,1705635042951,-811.61,0.0003452,3]
[312110716,1705635042961,-707.16,0.0003452,3]
[312110717,1705635042970,-675.16,0.0003452,3]
[312110718,1705635042979,-1093.27,0.0003452,3]
[312110719,1705635042991,-840.17,0.0003452,3]
[312110720,1705635043000,-621.68,0.0003452,3]
[312110721,1705635043010,-843.22,0.0003452,3]
[312110722,1705635043020,-500.0,0.0003452,3]
[312110723,1705635043029,-7570.57,0.0003452,3]
[312110724,1705635043039,-1806.32,0.0003452,3]
[312110725,1705635043048,-500.0,0.0003452,3]
[312110726,1705635043058,-500.0,0.0003452,3]
[312110727,1705635043067,-1117.13,0.0003452,3]
[312110728,1705635043076,-5588.27,0.0003452,3]
[312110729,1705635043085,-763.74,0.0003452,3]
[312110730,1705635043094,-1483.93,0.0003452,3]
[312110731,1705635043104,-500.0,0.0003452,3]
[312110732,1705635043114,-2752.47,0.0003452,3]
[312110733,1705635043123,-500.0,0.0003452,3]
[312110734,1705635043132,-500.0,0.0003452,3]
[312110735,1705635043142,-500.0,0.0003452,3]
[312110736,1705635043151,-500.0,0.0003452,3]
[312110737,1705635043161,-528.99,0.0003452,3]
[312110738,1705635043170,-500.0,0.0003452,3]
[312110739,1705635043179,-608.15,0.0003452,3]
[312110740,1705635043188,-2320.6,0.0003452,3]
[312110741,1705635043197,-166.0,0.00034521,2]
[312110742,1705635043206,-500.0,0.0003466,3]
[312110743,1705635043215,-6980.61821622,0.00034661,4]
[312110744,1705635043225,-11383.17356752,0.00034661,4]
[312110745,1705635043235,-426.86900878,0.00034661,4]
[312110746,1705635043248,-75967.58079613,0.00034661,4]
[312110776,1705635046258,-305.51246618,0.00029587,2]
[312110777,1705635046267,-500.0,0.00032876,2]
[312110778,1705635046276,-500.0,0.00032876,2]
[312110779,1705635046286,-500.0,0.00032876,2]
[312110780,1705635046295,-506.23833256,0.00032876,2]
[312110781,1705635046303,-500.0,0.0003315,3]
[312110782,1705635046314,-500.0,0.0003315,3]
[312110783,1705635046323,-500.0,0.00033424,3]
[312110784,1705635046333,-500.0,0.00033424,3]
[312110785,1705635046342,-211.99629686,0.00033688,3]
[312110848,1705636165101,-250.0,0.00029587,2]
[312110924,1705636238439,-28.73463244,0.00029587,2]
[312110925,1705636238449,-361.32348366,0.00032561,2]
[312110927,1705636238459,-1000.0,0.00032561,2]
[312110929,1705636238468,-4359.57,0.00032866,3]
[312110931,1705636238478,-271.0252213,0.00032874,4]
[312110933,1705636238488,-179.35665893,0.00032874,4]
[312110935,1705636238498,-301.31181134,0.00032874,4]
[312110937,1705636238507,-1007.32539438,0.00032874,20]
[312110939,1705636238516,-4640.27884439,0.00032874,3]
[312110941,1705636238526,-320.58512304,0.00032874,2]
[312110943,1705636238535,-155.14518389,0.00032874,4]
[312110945,1705636238544,-4214.56369568,0.00032874,7]
[312110947,1705636238554,-237.03094601,0.00032874,2]
[312110949,1705636238563,-1007.08974538,0.00032874,4]
[312110951,1705636238572,-427.08197687,0.00032875,2]
[312110953,1705636238580,-1000.0,0.00032876,2]
[312110955,1705636238595,-265.14928865,0.00032876,2]
[312110957,1705636238604,-501.38709058,0.00032876,2]
[312110959,1705636238613,-500.0,0.00032876,2]
[312110961,1705636238622,-500.0,0.00032876,2]
[312110963,1705636238632,-500.0,0.00032876,2]
[312110965,1705636238641,-500.0,0.00032876,2]
[312110967,1705636238650,-500.0,0.00032876,2]
[312110969,1705636238659,-500.0,0.00032876,2]
[312110971,1705636238668,-500.0,0.00032876,2]
[312110973,1705636238680,-507.36376259,0.00032876,2]
[312110975,1705636238689,-547.63,0.00032876,2]
[312110977,1705636238698,-596.71327148,0.00032876,2]
[312110978,1705636238708,-500.0,0.00032876,2]
[312110979,1705636238716,-501.85773985,0.00032876,2]
[312110980,1705636238726,-500.0,0.00032876,2]
[312110981,1705636238735,-500.0,0.00032876,2]
[312110982,1705636238745,-501.96821226,0.00032876,2]
[312110983,1705636238755,-500.0,0.00032876,2]
[312110984,1705636238765,-500.0,0.00032876,2]
[312110985,1705636238774,-391.31701219,0.00032876,2]
[312110986,1705636238783,-500.0,0.00032876,2]
[312110987,1705636238792,-500.0,0.00032876,2]
[312110988,1705636238801,-500.0,0.00032876,2]
[312110989,1705636238810,-468.5128347,0.00032876,2]
[312110990,1705636238819,-499.25770796,0.00032876,2]
[312110991,1705636238828,-500.0,0.00032876,2]
[312110992,1705636238837,-500.0,0.00032876,2]
[312110993,1705636238846,-500.0,0.00032876,2]
[312110994,1705636238855,-502.90873801,0.00032876,2]
[312110995,1705636238864,-502.98099743,0.00032876,2]
[312110996,1705636238872,-500.0,0.00032876,2]
[312110997,1705636238882,-296.75355326,0.00032876,2]
[312110998,1705636238891,-501.32970261,0.00032876,2]
[312110999,1705636238900,-502.99620188,0.00032876,2]
[312111000,1705636238909,-404.49007753,0.00032876,2]
[312111001,1705636238919,-500.0,0.00032876,2]
[312111002,1705636238928,-500.0,0.00032876,2]
[312111003,1705636238937,-500.0,0.00032876,2]
[312111004,1705636238946,-500.0,0.00032876,2]
[312111005,1705636238955,-502.47371861,0.00032876,2]
[312111006,1705636238965,-500.0,0.00032876,2]
[312111007,1705636238973,-500.0,0.00032876,2]
[312111008,1705636238983,-502.1634203,0.00032876,2]
[312111009,1705636238994,-500.0,0.00032876,2]
[312111010,1705636239003,-505.05509235,0.00032876,2]
[312111011,1705636239013,-500.0,0.00032876,2]
[312111012,1705636239022,-502.95572955,0.00032876,2]
[312111013,1705636239032,-500.0,0.00032876,2]
[312111014,1705636239041,-500.0,0.00032876,2]
[312111015,1705636239131,-500.0,0.00032876,2]
[312111016,1705636239141,-500.0,0.00032876,2]
[312111017,1705636239150,-500.0,0.00032876,2]
[312111018,1705636239159,-500.0,0.00032876,2]
[312111019,1705636239169,-500.0,0.00032876,2]
[312111020,1705636239178,-500.0,0.00032876,2]
[312111021,1705636239188,-503.27987946,0.00032876,2]
[312111022,1705636239197,-500.0,0.00032876,2]
[312111023,1705636239207,-500.0,0.00032876,2]
[312111024,1705636239217,-503.73008274,0.00032876,2]
[312111025,1705636239226,-500.0,0.00032876,2]
[312111026,1705636239236,-500.0,0.00032876,2]
[312111027,1705636239246,-504.67298462,0.00032876,2]
[312111028,1705636239256,-500.0,0.00032876,2]
[312111029,1705636239264,-503.85611457,0.00032876,2]
[312111030,1705636239274,-500.87285916,0.00032876,2]
[312111031,1705636239283,-500.0,0.00032876,2]
[312111032,1705636239293,-500.0,0.00032876,2]
[312111033,1705636239303,-509.74467699,0.00032876,2]
[312111034,1705636239312,-503.85132487,0.00032876,2]
[312111035,1705636239322,-502.35821217,0.00032876,2]
[312111036,1705636239331,-500.0,0.00032876,2]
[312111037,1705636239340,-500.0,0.00032876,2]
[312111038,1705636239350,-500.0,0.00032876,2]
[312111039,1705636239359,-480.61519015,0.00032876,2]
[312111040,1705636239368,-871.8,0.00032876,2]
[312111041,1705636239377,-681.71,0.00032876,2]
[312111042,1705636239386,-512.50623965,0.00032876,2]
[312111043,1705636239396,-584.97586281,0.00032876,2]
[312111044,1705636239405,-505.71343342,0.00032876,2]
[312111045,1705636239414,-500.0,0.00032876,2]
[312111046,1705636239424,-505.27819913,0.00032876,2]
[312111047,1705636239433,-500.0,0.00032876,2]
[312111048,1705636239442,-500.0,0.00032876,2]
[312111049,1705636239451,-823.82,0.00032876,2]
[312111050,1705636239460,-7287.67,0.00032876,2]
[312111051,1705636239469,-501.18705401,0.00032876,2]
[312111052,1705636239478,-500.0,0.00032876,2]
[312111053,1705636239488,-807.3,0.00032876,2]
[312111054,1705636239497,-500.0,0.00032876,2]
[312111055,1705636239507,-500.0,0.00032876,2]
[312111056,1705636239516,-500.0,0.00032876,2]
[312111057,1705636239526,-500.0,0.00032876,2]
[312111058,1705636239535,-500.0,0.00032876,2]
[312111059,1705636239544,-506.76501181,0.00032876,2]
[312111060,1705636239553,-500.0,0.00032876,2]
[312111061,1705636239563,-516.49737207,0.00032876,2]
[312111062,1705636239572,-2063.51,0.00032876,2]
[312111063,1705636239582,-500.0,0.00032876,2]
[312111064,1705636239591,-500.0,0.00032876,2]
[312111065,1705636239603,-444.17934324,0.00032876,2]
[312111066,1705636239612,-500.0,0.00032876,2]
[312111067,1705636239621,-501.42981573,0.00032876,2]
[312111068,1705636239631,-500.0,0.00032876,2]
[312111069,1705636239641,-1113.87,0.00032876,2]
[312111070,1705636239650,-500.0,0.00032876,2]
[312111071,1705636239664,-1724.39,0.00032876,2]
[312111072,1705636239674,-5355.43,0.00032876,2]
[312111074,1705636239684,-187.93193822,0.00032876,2]
[312111075,1705636239694,-500.0,0.00032876,2]
[312111077,1705636239703,-503.50962741,0.00032876,2]
[312111078,1705636239713,-500.0,0.00032876,2]
[312111079,1705636239722,-500.0,0.00032876,2]
[312111080,1705636239731,-500.0,0.00032876,14]
[312111081,1705636239740,-500.0,0.00032876,2]
[312111082,1705636239750,-595.1791592,0.00032876,2]
[312111083,1705636239771,-500.0,0.00032876,2]
[312111084,1705636239782,-500.0,0.00032876,2]
[312111085,1705636239792,-500.0,0.00032876,2]
[312111086,1705636239802,-500.0,0.00032876,2]
[312111087,1705636239813,-500.0,0.00032876,2]
[312111088,1705636239823,-500.0,0.00032876,2]
[312111089,1705636239833,-500.0,0.00032876,2]
[312111090,1705636239843,-506.95,0.00032876,2]
[312111091,1705636239853,-500.0,0.00032876,2]
[312111092,1705636239863,-500.0,0.00032876,2]
[312111093,1705636239873,-500.0,0.00032876,2]
[312111094,1705636239883,-510.74031725,0.00032876,2]
[312111095,1705636239893,-500.0,0.00032876,2]
[312111096,1705636239903,-533.86292793,0.00032876,2]
[312111097,1705636239913,-500.0,0.00032876,2]
[312111098,1705636239923,-504.0014974,0.00032876,2]
[312111099,1705636239933,-506.64434181,0.00032876,2]
[312111100,1705636239942,-500.0,0.00032876,2]
[312111101,1705636239952,-505.8093406,0.00032876,2]
[312111102,1705636239962,-500.0,0.00032876,2]
[312111103,1705636239971,-2368.93,0.00032876,2]
[312111104,1705636239981,-500.0,0.00032876,2]
[312111105,1705636239991,-500.0,0.00032876,2]
[312111106,1705636240001,-608.26,0.00032876,2]
[312111107,1705636240010,-2269.17,0.00032876,2]
[312111108,1705636240020,-500.0,0.00032876,2]
[312111109,1705636240030,-500.0,0.00032876,2]
[312111110,1705636240040,-500.0,0.00032876,2]
[312111111,1705636240050,-503.21859856,0.00032876,2]
[312111112,1705636240059,-500.0,0.00032876,2]
[312111113,1705636240069,-505.50777111,0.00032876,2]
[312111114,1705636240079,-503.56614441,0.00032876,2]
[312111115,1705636240088,-748.6,0.00032876,2]
[312111116,1705636240098,-502.27871451,0.00032876,2]
[312111117,1705636240108,-1234.29,0.00032876,2]
[312111118,1705636240118,-500.0,0.00032876,2]
[312111119,1705636240136,-500.0,0.00032876,2]
[312111120,1705636240150,-630.94392972,0.00032876,2]
[312111121,1705636240164,-500.0,0.00032876,2]
[312111122,1705636240178,-153.0,0.000329,2]
[312111123,1705636240191,-198.957615,0.000329,2]
[312111124,1705636240203,-155.0,0.00033146,2]
[312111125,1705636240214,-505.5506374,0.00033148,3]
[312111126,1705636240226,-674.54,0.00033148,3]
[312111127,1705636240240,-936.97,0.00033148,3]
[312111128,1705636240252,-500.0,0.00033148,3]
[312111129,1705636240264,-500.0,0.00033148,3]
[312111130,1705636240276,-500.0,0.00033148,3]
[312111131,1705636240289,-764.99,0.00033148,3]
[312111132,1705636240302,-2768.08,0.00033148,3]
[312111133,1705636240313,-500.0,0.00033148,3]
[312111134,1705636240326,-398.19377489,0.00033149,4]
[312111135,1705636240337,-500.0,0.00033149,3]
[312111136,1705636240347,-500.0,0.0003315,3]
[312111137,1705636240358,-500.0,0.0003315,3]
[312111138,1705636240371,-496.21513945,0.0003315,3]
[312111139,1705636240382,-500.0,0.0003315,3]
[312111140,1705636240394,-500.0,0.0003315,3]
[312111141,1705636240405,-510.49124954,0.0003315,3]
[312111142,1705636240415,-500.0,0.0003315,3]
[312111143,1705636240426,-492.00719133,0.0003315,3]
[312111144,1705636240437,-500.0,0.0003315,3]
[312111145,1705636240450,-500.0,0.0003315,3]
[312111146,1705636240462,-501.85237378,0.0003315,3]
[312111147,1705636240473,-500.0,0.0003315,3]
[312111149,1705636240483,-500.0,0.0003315,3]
[312111151,1705636240494,-226.67704984,0.0003315,3]
[312111152,1705636240507,-500.0,0.0003315,3]
[312111153,1705636240520,-396.41630454,0.0003315,3]
[312111154,1705636240531,-500.0,0.0003315,3]
[312111156,1705636240543,-500.0,0.0003315,3]
[312111157,1705636240555,-510.23718748,0.0003315,3]
[312111158,1705636240567,-500.0,0.0003315,3]
[312111159,1705636240579,-500.0,0.0003315,3]
[312111160,1705636240589,-500.0,0.0003315,3]
[312111161,1705636240603,-511.22320999,0.0003315,3]
[312111162,1705636240615,-500.0,0.0003315,3]
[312111163,1705636240626,-500.0,0.0003315,3]
[312111164,1705636240639,-500.0,0.0003315,3]
[312111165,1705636240651,-871.8,0.0003315,3]
[312111166,1705636240663,-681.71,0.0003315,3]
[312111167,1705636240676,-500.0,0.0003315,3]
[312111168,1705636240688,-823.82,0.0003315,3]
[312111169,1705636240701,-7287.67,0.0003315,3]
[312111170,1705636240713,-807.3,0.0003315,3]
[312111171,1705636240725,-500.0,0.0003315,3]
[312111172,1705636240735,-501.40007869,0.0003315,3]
[312111173,1705636240747,-500.0,0.0003315,3]
[312111174,1705636240757,-500.0,0.0003315,3]
[312111175,1705636240767,-2063.51,0.0003315,3]
[312111176,1705636240779,-442.01048546,0.0003315,3]
[312111177,1705636240790,-506.64965042,0.0003315,3]
[312111178,1705636240801,-1113.87,0.0003315,3]
[312111179,1705636240813,-583.97798925,0.0003315,3]
[312111180,1705636240824,-1724.39,0.0003315,3]
[312111181,1705636240836,-5355.43,0.0003315,3]
[312111182,1705636240848,-500.0,0.0003315,3]
[312111183,1705636240859,-500.0,0.0003315,3]
[312111184,1705636240870,-500.0,0.0003315,14]
[312111185,1705636240880,-500.0,0.0003315,3]
[312111186,1705636240890,-500.0,0.0003315,3]
[312111187,1705636240902,-500.0,0.0003315,3]
[312111188,1705636240912,-500.0,0.0003315,3]
[312111189,1705636240923,-503.81106822,0.0003315,3]
[312111190,1705636240933,-500.0,0.0003315,3]
[312111191,1705636240943,-500.0,0.0003315,3]
[312111192,1705636240954,-506.95,0.0003315,3]
[312111193,1705636240965,-500.0,0.0003315,3]
[312111194,1705636240976,-356.98673676,0.0003315,3]
[312111195,1705636240988,-500.0,0.0003315,3]
[312111196,1705636240999,-500.0,0.0003315,3]
[312111197,1705636241011,-500.0,0.0003315,3]
[312111198,1705636241023,-2368.93,0.0003315,3]
[312111199,1705636241035,-500.0,0.0003315,3]
[312111200,1705636241047,-500.0,0.0003315,3]
[312111201,1705636241058,-608.26,0.0003315,3]
[312111202,1705636241068,-2269.17,0.0003315,3]
[312111203,1705636241079,-500.0,0.0003315,3]
[312111204,1705636241090,-507.82039817,0.0003315,2]
[312111205,1705636241101,-500.0,0.0003315,3]
[312111206,1705636241111,-748.6,0.0003315,3]
[312111207,1705636241123,-1234.29,0.0003315,3]
[312111208,1705636241133,-674.54,0.00033422,3]
[312111209,1705636241144,-936.97,0.00033422,3]
[312111210,1705636241155,-500.0,0.00033422,3]
[312111211,1705636241166,-500.0,0.00033422,3]
[312111212,1705636241177,-500.0,0.00033422,3]
[312111213,1705636241188,-764.99,0.00033422,3]
[312111214,1705636241198,-2768.08,0.00033422,3]
[312111215,1705636241210,-500.0,0.00033422,3]
[312111216,1705636241220,-500.0,0.00033423,3]
[312111217,1705636241231,-500.0,0.00033424,3]
[312111218,1705636241241,-500.0,0.00033424,3]
[312111219,1705636241252,-500.0,0.00033424,3]
[312111220,1705636241366,-505.34721411,0.00033424,3]
[312111221,1705636241380,-500.0,0.00033424,3]
[312111222,1705636241389,-500.0,0.00033424,3]
[312111223,1705636241399,-500.0,0.00033424,3]
[312111224,1705636241408,-500.0,0.00033424,3]
[312111225,1705636241417,-500.0,0.00033424,3]
[312111226,1705636241426,-500.0,0.00033424,3]
[312111227,1705636241435,-500.0,0.00033424,3]
[312111228,1705636241444,-500.0,0.00033424,3]
[312111229,1705636241454,-871.8,0.00033424,3]
[312111230,1705636241463,-681.71,0.00033424,3]
[312111231,1705636241472,-500.0,0.00033424,3]
[312111232,1705636241481,-823.82,0.00033424,3]
[312111233,1705636241490,-7287.67,0.00033424,3]
[312111234,1705636241500,-807.3,0.00033424,3]
[312111235,1705636241510,-637.62449077,0.00033424,3]
[312111236,1705636241519,-500.0,0.00033424,3]
[312111237,1705636241528,-500.0,0.00033424,3]
[312111238,1705636241538,-2063.51,0.00033424,3]
[312111239,1705636241547,-1113.87,0.00033424,3]
[312111240,1705636241556,-1724.39,0.00033424,3]
[312111241,1705636241566,-5355.43,0.00033424,3]
[312111242,1705636241575,-500.0,0.00033424,3]
[312111243,1705636241586,-500.0,0.00033424,3]
[312111244,1705636241598,-500.0,0.00033424,3]
[312111245,1705636241612,-500.0,0.00033424,3]
[312111246,1705636241621,-500.0,0.00033424,3]
[312111247,1705636241630,-500.0,0.00033424,3]
[312111248,1705636241639,-500.0,0.00033424,3]
[312111249,1705636241650,-500.0,0.00033424,3]
[312111250,1705636241659,-506.95,0.00033424,3]
[312111251,1705636241668,-500.0,0.00033424,3]
[312111252,1705636241677,-500.0,0.00033424,3]
[312111253,1705636241686,-504.07827703,0.00033424,3]
[312111254,1705636241695,-2368.93,0.00033424,3]
[312111255,1705636241705,-608.26,0.00033424,3]
[312111256,1705636241714,-500.0,0.00033424,3]
[312111257,1705636241723,-2269.17,0.00033424,3]
[312111258,1705636241731,-748.6,0.00033424,3]
[312111259,1705636241741,-1234.29,0.00033424,3]
[312111260,1705636241750,-171.73335565,0.000336,7]
[312111261,1705636241760,-506.01096507,0.00033688,4]
[312111262,1705636241770,-333.2551546,0.00033688,2]
[312111263,1705636241779,-674.54,0.00033696,3]
[312111264,1705636241788,-936.97,0.00033696,3]
[312111265,1705636241797,-500.0,0.00033696,3]
[312111266,1705636241806,-500.0,0.00033696,3]
[312111267,1705636241816,-500.0,0.00033696,3]
[312111269,1705636241826,-764.99,0.00033696,3]
[312111271,1705636241836,-2768.08,0.00033696,3]
[312111273,1705636241845,-500.0,0.00033696,3]
[312111275,1705636241854,-500.0,0.00033697,3]
[312111276,1705636241864,-1000.0,0.00033698,2]
[312111277,1705636241873,-500.0,0.00033698,3]
[312111278,1705636241882,-500.0,0.00033698,3]
[312111279,1705636241891,-500.0,0.00033698,3]
[312111281,1705636241900,-390.50952533,0.00033698,3]
[312111282,1705636241909,-500.0,0.00033698,3]
[312111283,1705636241917,-500.0,0.00033698,3]
[312111284,1705636241926,-500.0,0.00033698,3]
[312111285,1705636241935,-500.0,0.00033698,3]
[312111286,1705636241945,-500.0,0.00033698,3]
[312111287,1705636241954,-871.8,0.00033698,3]
[312111288,1705636241963,-681.71,0.00033698,3]
[312111289,1705636241973,-500.0,0.00033698,3]
[312111290,1705636241983,-823.82,0.00033698,3]
[312111291,1705636241994,-7287.67,0.00033698,3]
[312111292,1705636242003,-807.3,0.00033698,3]
[312111293,1705636242013,-500.0,0.00033698,3]
[312111294,1705636242022,-500.0,0.00033698,3]
[312111295,1705636242031,-2063.51,0.00033698,3]
[312111296,1705636242040,-1113.87,0.00033698,3]
[312111297,1705636242050,-1724.39,0.00033698,3]
[312111298,1705636242059,-5355.43,0.00033698,3]
[312111299,1705636242068,-362.39709641,0.00033698,3]
[312111300,1705636242078,-500.0,0.00033698,3]
[312111301,1705636242087,-500.0,0.00033698,3]
[312111302,1705636242096,-500.0,0.00033698,3]
[312111303,1705636242106,-500.0,0.00033698,3]
[312111304,1705636242115,-500.0,0.00033698,3]
[312111305,1705636242124,-500.0,0.00033698,3]
[312111306,1705636242134,-515.65662381,0.00033698,3]
[312111307,1705636242144,-506.95,0.00033698,3]
[312111308,1705636242153,-500.0,0.00033698,3]
[312111309,1705636242163,-500.0,0.00033698,3]
[312111310,1705636242172,-2368.93,0.00033698,3]
[312111311,1705636242182,-608.26,0.00033698,3]
[312111312,1705636242191,-485.51076799,0.00033698,3]
[312111313,1705636242201,-2269.17,0.00033698,3]
[312111314,1705636242211,-748.6,0.00033698,3]
[312111315,1705636242220,-1234.29,0.00033698,3]
[312111316,1705636242229,-674.54,0.0003397,3]
[312111317,1705636242239,-936.97,0.0003397,3]
[312111318,1705636242249,-500.0,0.0003397,3]
[312111319,1705636242258,-500.0,0.0003397,3]
[312111320,1705636242267,-500.0,0.0003397,3]
[312111321,1705636242277,-764.99,0.0003397,3]
[312111322,1705636242287,-2768.08,0.0003397,3]
[312111323,1705636242296,-500.0,0.0003397,3]
[312111324,1705636242305,-500.0,0.00033971,3]
[312111325,1705636242315,-500.0,0.00033972,3]
[312111326,1705636242324,-500.0,0.00033972,3]
[312111327,1705636242333,-500.0,0.00033972,3]
[312111328,1705636242342,-500.0,0.00033972,3]
[312111329,1705636242364,-385.55693188,0.00033972,3]
[312111330,1705636242373,-500.0,0.00033972,3]
[312111331,1705636242382,-500.0,0.00033972,3]
[312111332,1705636242391,-500.0,0.00033972,3]
[312111333,1705636242400,-681.71,0.00033972,3]
[312111334,1705636242409,-871.8,0.00033972,3]
[312111335,1705636242419,-500.0,0.00033972,3]
[312111336,1705636242428,-823.82,0.00033972,3]
[312111337,1705636242437,-7287.67,0.00033972,3]
[312111338,1705636242446,-807.3,0.00033972,3]
[312111339,1705636242455,-611.02220201,0.00033972,3]
[312111340,1705636242465,-500.0,0.00033972,3]
[312111341,1705636242475,-2063.51,0.00033972,3]
[312111342,1705636242485,-1113.87,0.00033972,3]
[312111343,1705636242496,-1724.39,0.00033972,3]
[312111344,1705636242506,-5355.43,0.00033972,3]
[312111345,1705636242515,-500.0,0.00033972,3]
[312111346,1705636242524,-500.0,0.00033972,3]
[312111347,1705636242534,-500.0,0.00033972,3]